fUST/lending_fUST_20240708
["ID","MTS","AMOUNT","RATE_DAILY","PERIOD"]
[331418334,1720369787422,570.75469918,0.00036311,30]
[331418335,1720369787590,240.46096223,0.00036311,30]
[331418336,1720369789933,792.73,0.00036311,30]
[331418337,1720369790287,792.73,0.00036311,30]
[331418338,1720369790598,792.73,0.00036311,30]
[331418339,1720369790911,792.73,0.00036311,30]
[331418340,1720369791198,792.73,0.00036311,30]
[331418341,1720369791476,792.73,0.00036311,30]
[331418342,1720369791765,792.73,0.00036311,30]
[331418343,1720369792029,792.73,0.00036311,30]
[331418344,1720369792330,792.73,0.00036311,30]
[331418345,1720369792612,792.73,0.00036311,30]
[331418346,1720369792911,792.73,0.00036311,30]
[331418347,1720369793179,792.73,0.00036311,30]
[331418348,1720369793457,792.73,0.00036311,30]
[331418349,1720369793742,792.73,0.00036311,30]
[331418350,1720369794026,792.73,0.00036311,30]
[331418351,1720369794659,792.73,0.00036311,30]
[331418352,1720369794959,792.73,0.00036311,30]
[331418353,1720369795285,792.73,0.00036311,30]
[331418354,1720369795513,792.73,0.00036311,30]
[331418355,1720369795847,792.73,0.00036311,30]
[331418356,1720369796117,792.73,0.00036311,30]
[331418357,1720369796431,792.73,0.00036311,30]
[331418358,1720369796995,792.73,0.00036311,30]
[331418359,1720369797284,792.96639855,0.00036311,30]
[331418360,1720369799029,500.0,0.00036311,30]
[331418361,1720369799401,500.0,0.00036311,30]
[331418362,1720369799762,287.5472963,0.00036311,30]
[331418368,1720369832140,-205.407733,0.00021096,2]
[331418370,1720369832151,-328.652359,0.00021096,2]
[331418371,1720369832161,-7453.00531121,0.00022941,2]
[331418410,1720369838752,-16728.55641198,0.00022941,2]
[331418411,1720369838762,-162.031494,0.00024153,2]
[331418412,1720369838771,-371.2262854,0.00024178,2]
[331418413,1720369838781,-300.0,0.00024344,2]
[331418414,1720369838790,-300.0,0.00024344,2]
[331418415,1720369838799,-334.01314852,0.00024344,2]
[331418416,1720369838809,-500.0,0.00024344,2]
[331418417,1720369838818,-24900.0,0.00024345,2]
[331418418,1720369838828,-702.1062706,0.00025021,2]
[331418419,1720369838838,-52119.39254387,0.00025501,2]
[331418420,1720369838847,-498.1402441,0.00025759,2]
[331418421,1720369838857,-11286.1526568,0.00025859,3]
[331418422,1720369838867,-170.9601064,0.00026509,2]
[331418423,1720369838877,-420.0,0.00026779,2]
[331418424,1720369838886,-328.652359,0.00027195,2]
[331418425,1720369838897,-159.596033,0.00028642,2]
[331418426,1720369838906,-587.0,0.00029457,2]
[331418427,1720369838916,-498.14024408,0.00029679,2]
[331418428,1720369838926,-7563.98294313,0.00029903,2]
[331418429,1720369838935,-9615.23092531,0.00029903,2]
[331418430,1720369838945,-156.05927234,0.0003,4]
[331418431,1720369838955,-823.0,0.00032402,2]
[331418432,1720369838964,-328.652359,0.00033295,2]
[331418433,1720369838974,-620.0,0.00033461,2]
[331418434,1720369838983,-498.14024408,0.00033599,2]
[331418435,1720369838993,-2212.56111041,0.00034224,2]
[331418436,1720369839005,-1501.24478952,0.00034458,2]
[331418437,1720369839016,-231.81648827,0.00034523,2]
[331418438,1720369839026,-4137.97007333,0.00034559,4]
[331418439,1720369839040,-264.97857403,0.00034702,2]
[331418440,1720369839050,-4217.45953468,0.00034771,2]
[331418441,1720369839060,-288.11961638,0.00035,120]
[331418442,1720369839071,-558.67777589,0.00035616,30]
[331418443,1720369839084,-1152.0,0.00035643,2]
[331418444,1720369839094,-11286.1526568,0.00036308,4]
[331418445,1720369839104,-288.44680642,0.00036311,30]
[331418446,1720369839114,-150.0,0.00036311,7]
[331418447,1720369839125,-200.12,0.00036311,7]
[331418448,1720369839135,-983.75784699,0.00036311,2]
[331418449,1720369839148,-500.0,0.00036311,2]
[331418450,1720369839159,-500.0,0.00036311,2]
[331418451,1720369839170,-500.0,0.00036311,2]
[331418452,1720369839182,-500.0,0.00036311,2]
[331418453,1720369839193,-500.0,0.00036311,2]
[331418454,1720369839204,-500.0,0.00036311,2]
[331418455,1720369839214,-500.0,0.00036311,2]
[331418456,1720369839227,-500.0,0.00036311,2]
[331418457,1720369839238,-500.0,0.00036311,2]
[331418458,1720369839249,-500.0,0.00036311,2]
[331418459,1720369839260,-500.0,0.00036311,2]
[331418460,1720369839270,-500.0,0.00036311,2]
[331418461,1720369839280,-500.0,0.00036311,2]
[331418462,1720369839292,-180.58868514,0.00036311,2]
[331418463,1720369839302,-303.14085162,0.00036311,4]
[331418464,1720369839312,-26051.55351601,0.00036311,4]
[331418465,1720369839322,-1025.80221064,0.00036311,4]
[331418466,1720369839333,-5608.60512887,0.00036311,4]
[331418467,1720369839343,-575.15278975,0.00036311,4]
[331418468,1720369839352,-256.67016396,0.00037085,2]
[331418469,1720369839362,-256.67016396,0.00037085,2]
[331418470,1720369839373,-498.14024408,0.00037519,2]
[331418471,1720369839383,-212.77943207,0.00037587,4]
[331418472,1720369839393,-288.11961638,0.00038,120]
[331418473,1720369839407,-231.81648823,0.00038842,2]
[331418474,1720369839417,-450.0,0.00039,120]
[331418475,1720369839428,-308.0,0.00039207,3]
[331418476,1720369839439,-2212.56111041,0.00039224,2]
[331418477,1720369839449,-328.652359,0.00039394,2]
[331418478,1720369839460,-1000.0,0.0004,120]
[331418479,1720369839470,-1000.0,0.0004,120]
[331418480,1720369839480,-2511.00774553,0.00040278,4]
[331418481,1720369839490,-6981.98564229,0.00040999,4]
[331418482,1720369839500,-1000.0,0.00041,120]
[331418483,1720369839509,-1000.0,0.00041,120]
[331418484,1720369839519,-179.148658,0.00041096,2]
[331418485,1720369839529,-2420.76089721,0.00041314,4]
[331418486,1720369839539,-151.24510086,0.00041344,4]
[331418487,1720369839551,-498.14024408,0.0004144,28]
[331418488,1720369839560,-150.0,0.00041893,2]
[331418489,1720369839571,-150.0,0.00041949,2]
[331418490,1720369839580,-1405.0,0.00041949,2]
[331418491,1720369839590,-4610.6755688,0.00041999,2]
[331418492,1720369839601,-4711.13030053,0.00041999,4]
[331418493,1720369839611,-1000.0,0.00042,120]
[331418494,1720369839621,-1000.0,0.00042,30]
[331418495,1720369839631,-2118.54298063,0.00042398,4]
[331418496,1720369839642,-1603.47555763,0.00042398,20]
[331418497,1720369839657,-1050.09,0.00042465,120]
[331418498,1720369839666,-1000.00806564,0.000425,120]
[331418499,1720369839676,-155.54458978,0.00042629,4]
[331418500,1720369839688,-11286.1526568,0.00042654,5]
[331418501,1720369839698,-2000.0,0.00042656,4]
[331418502,1720369839708,-999.0,0.00042664,120]
[331418503,1720369839822,-2000.0,0.00042665,4]
[331418504,1720369839832,-2000.0,0.00042674,4]
[331418505,1720369839843,-154.68290005,0.00042958,2]
[331418506,1720369839855,-302.22790478,0.00042958,4]
[331418507,1720369839865,-1600.47790275,0.00042999,4]
[331418508,1720369839875,-1500.0,0.00042999,4]
[331418509,1720369839885,-154.68290005,0.00042999,4]
[331418510,1720369839898,-284.8352037,0.00042999,4]
[331418511,1720369839908,-576.23923275,0.00043,120]
[331418512,1720369839919,-1050.09,0.0004315,120]
[331418513,1720369839928,-231.81648823,0.00043162,2]
[331418514,1720369839939,-231.75967133,0.00043285,31]
[331418515,1720369839950,-360.24274682,0.00043285,31]
[331418516,1720369839960,-500.0,0.00043285,31]
[331418518,1720369839971,-466.05833873,0.00043285,31]
[331418519,1720369839982,-500.0,0.00043285,31]
[331418520,1720369839994,-500.0,0.00043285,31]
[331418522,1720369840010,-500.0,0.00043285,31]
[331418524,1720369840020,-500.0,0.00043285,31]
[331418525,1720369840030,-505.34855382,0.00043285,31]
[331418526,1720369840040,-183.78650015,0.00043285,31]
[331418527,1720369840053,-1434.5963251,0.00043286,4]
[331418528,1720369840064,-1147.98546483,0.00043287,2]
[331418529,1720369840076,-154.98563256,0.00043507,30]
[331418531,1720369840087,-154.59445059,0.00043716,30]
[331418532,1720369840098,-11286.1526568,0.00043825,5]
[331418533,1720369840108,-500.0,0.00043835,7]
[331418534,1720369840118,-500.0,0.00043835,120]
[331418535,1720369840128,-757.72,0.00043835,120]
[331418536,1720369840138,-500.0,0.00043835,120]
[331418537,1720369840148,-1050.09,0.00043835,120]
[331418538,1720369840158,-1088.7,0.00043835,120]
[331418539,1720369840168,-500.0,0.00043835,120]
[331418541,1720369840179,-500.0,0.00043835,120]
[331418543,1720369840188,-500.0,0.00043835,120]
[331418544,1720369840198,-509.23430185,0.00043835,120]
[331418545,1720369840208,-1145.43,0.00043835,120]
[331418546,1720369840219,-205.65458068,0.00043835,120]
[331418547,1720369840228,-500.0,0.00043835,120]
[331418548,1720369840239,-500.0,0.00043835,120]
[331418549,1720369840250,-500.0,0.00043835,120]
[331418550,1720369840260,-500.0,0.00043835,120]
[331418551,1720369840270,-154.98563256,0.00043905,30]
[331418552,1720369840280,-5412.64303582,0.00044028,20]
[331418553,1720369840290,-500.0,0.00044109,7]
[331418554,1720369840300,-500.0,0.00044109,120]
[331418555,1720369840310,-757.72,0.00044109,120]
[331418556,1720369840320,-328.67,0.00044109,120]
[331418557,1720369840330,-1088.7,0.00044109,120]
[331418558,1720369840340,-500.0,0.00044109,120]
[331418559,1720369840350,-251.90378244,0.00044109,120]
[331418560,1720369840359,-500.0,0.00044109,120]
[331418561,1720369840369,-1145.43,0.00044109,120]
[331418562,1720369840379,-500.0,0.00044109,120]
[331418563,1720369840388,-500.0,0.00044109,120]
[331418564,1720369840399,-500.0,0.00044109,120]
[331418565,1720369840409,-477.9243526,0.00044109,120]
[331418566,1720369840419,-2212.56111041,0.00044224,2]
[331418567,1720369840428,-500.0,0.00044383,7]
[331418568,1720369840438,-500.0,0.00044383,120]
[331418569,1720369840447,-757.72,0.00044383,120]
[331418570,1720369840457,-1088.7,0.00044383,120]
[331418571,1720369840467,-500.0,0.00044383,120]
[331418572,1720369840478,-1145.43,0.00044383,120]
[331418573,1720369840487,-500.0,0.00044383,120]
[331418574,1720369840498,-500.0,0.00044383,120]
[331418575,1720369840508,-500.0,0.00044383,120]
[331418576,1720369840518,-155.977319,0.00044435,30]
[331418577,1720369840527,-1050.09,0.0004452,120]
[331418578,1720369840537,-11286.1526568,0.00044647,5]
[331418579,1720369840547,-500.0,0.00044657,7]
[331418580,1720369840558,-500.0,0.00044657,120]
[331418581,1720369840567,-757.72,0.00044657,120]
[331418582,1720369840576,-1088.7,0.00044657,120]
[331418583,1720369840585,-500.0,0.00044657,120]
[331418584,1720369840595,-1145.43,0.00044657,120]
[331418585,1720369840605,-500.0,0.00044657,120]
[331418586,1720369840614,-500.0,0.00044657,120]
[331418587,1720369840624,-500.0,0.00044657,120]
[331418588,1720369840634,-500.0,0.00044931,7]
[331418589,1720369840643,-500.0,0.00044931,120]
[331418590,1720369840656,-757.72,0.00044931,120]
[331418591,1720369840665,-1088.7,0.00044931,120]
[331418592,1720369840679,-500.0,0.00044931,120]
[331418593,1720369840688,-1145.43,0.00044931,120]
[331418594,1720369840697,-500.0,0.00044931,120]
[331418595,1720369840707,-500.0,0.00044931,120]
[331418596,1720369840716,-500.0,0.00044931,120]
[331418597,1720369840725,-150.0,0.00044949,2]
[331418598,1720369840735,-1405.0,0.00044949,2]
[331418599,1720369840744,-500.0,0.00045205,7]
[331418600,1720369840754,-500.0,0.00045205,120]
[331418601,1720369840764,-757.72,0.00045205,120]
[331418602,1720369840776,-1050.09,0.00045205,120]
[331418603,1720369840786,-1088.7,0.00045205,120]
[331418604,1720369840795,-500.0,0.00045205,120]
[331418605,1720369840805,-1145.43,0.00045205,120]
[331418606,1720369840815,-500.0,0.00045205,120]
[331418607,1720369840824,-500.0,0.00045205,120]
[331418608,1720369840834,-500.0,0.00045205,120]
[331418609,1720369840844,-498.14024408,0.0004536,28]
[331418610,1720369840854,-500.0,0.00045479,7]
[331418611,1720369840863,-500.0,0.00045479,120]
[331418612,1720369840873,-757.72,0.00045479,120]
[331418613,1720369840883,-1088.7,0.00045479,120]
[331418614,1720369840892,-500.0,0.00045479,120]
[331418615,1720369840902,-1145.43,0.00045479,120]
[331418616,1720369840911,-500.0,0.00045479,120]
[331418617,1720369840921,-500.0,0.00045479,120]
[331418618,1720369840930,-500.0,0.00045479,120]
[331418619,1720369840940,-328.652359,0.00045494,2]
[331418620,1720369840950,-11286.1526568,0.00045743,5]
[331418621,1720369840960,-500.0,0.00045753,7]
[331418622,1720369840969,-458.52,0.00045753,120]
[331418623,1720369840979,-757.72,0.00045753,120]
[331418624,1720369840987,-1088.7,0.00045753,120]
[331418625,1720369840997,-500.0,0.00045753,120]
[331418626,1720369841011,-1145.43,0.00045753,120]
[331418627,1720369841020,-500.0,0.00045753,120]
[331418628,1720369841031,-500.0,0.00045753,120]
[331418629,1720369841040,-500.0,0.00045753,120]
[331418630,1720369841051,-1050.09,0.0004589,120]
[331418631,1720369841061,-720.29904094,0.00046,120]
[331418632,1720369841070,-500.0,0.00046027,7]
[331418633,1720369841081,-757.72,0.00046027,120]
[331418634,1720369841091,-1088.7,0.00046027,120]
[331418635,1720369841100,-500.0,0.00046027,120]
[331418636,1720369841109,-1145.43,0.00046027,120]
[331418637,1720369841118,-500.0,0.00046027,120]
[331418638,1720369841127,-500.0,0.00046027,120]
[331418639,1720369841136,-500.0,0.00046027,120]
[331418640,1720369841145,-500.0,0.00046301,7]
[331418641,1720369841155,-757.72,0.00046301,120]
[331418642,1720369841165,-1088.7,0.00046301,120]
[331418643,1720369841174,-500.0,0.00046301,120]
[331418644,1720369841183,-1145.43,0.00046301,120]
[331418645,1720369841192,-500.0,0.00046301,120]
[331418646,1720369841203,-599.01908386,0.00046301,120]
[331418647,1720369841212,-500.0,0.00046301,120]
[331418648,1720369841223,-154.98563256,0.00046328,30]
[331418649,1720369841232,-500.0,0.00046575,7]
[331418650,1720369841241,-757.72,0.00046575,120]
[331418651,1720369841251,-1050.09,0.00046575,120]
[331418652,1720369841260,-1088.7,0.00046575,120]
[331418653,1720369841269,-500.0,0.00046575,120]
[331418654,1720369841278,-1145.43,0.00046575,120]
[331418655,1720369841287,-500.0,0.00046575,120]
[331418656,1720369841296,-500.0,0.00046575,120]
[331418657,1720369841306,-11286.1526568,0.00046839,5]
[331418658,1720369841316,-558.20932953,0.00046849,7]
[331418659,1720369841325,-757.72,0.00046849,120]
[331418660,1720369841334,-1088.7,0.00046849,120]
[331418661,1720369841346,-500.0,0.00046849,120]
[331418662,1720369841355,-1145.43,0.00046849,120]
[331418663,1720369841364,-500.0,0.00046849,120]
[331418664,1720369841374,-392.96008953,0.00046849,120]
[331418665,1720369841383,-757.72,0.00047123,120]
[331418666,1720369841392,-1088.7,0.00047123,120]
[331418667,1720369841403,-500.0,0.00047123,120]
[331418668,1720369841413,-1145.43,0.00047123,120]
[331418669,1720369841423,-500.0,0.00047123,120]
[331418670,1720369841432,-153.0,0.00047123,120]
[331418671,1720369841442,-153.0,0.00047123,120]
[331418672,1720369841451,-154.98563256,0.00047178,30]
[331418673,1720369841460,-154.59445059,0.00047223,30]
[331418674,1720369841470,-1050.09,0.0004726,120]
[331418675,1720369841479,-757.72,0.00047397,120]
[331418676,1720369841488,-1088.7,0.00047397,120]
[331418677,1720369841498,-500.0,0.00047397,120]
[331418678,1720369841508,-1145.43,0.00047397,120]
[331418679,1720369841517,-500.0,0.00047397,120]
[331418680,1720369841526,-231.81648823,0.00047481,2]
[331418681,1720369841535,-757.72,0.00047671,120]
[331418682,1720369841545,-1088.7,0.00047671,120]
[331418683,1720369841554,-347.93250638,0.00047671,120]
[331418684,1720369841564,-1145.43,0.00047671,120]
[331418685,1720369841573,-500.0,0.00047671,120]
[331418686,1720369841583,-757.72,0.00047945,120]
[331418687,1720369841593,-1050.09,0.00047945,120]
[331418688,1720369841602,-1088.7,0.00047945,120]
[331418689,1720369841613,-1145.43,0.00047945,120]
[331418690,1720369841624,-500.0,0.00047945,120]
[331418691,1720369841634,-151.0,0.00047945,14]
[331418692,1720369841643,-1405.0,0.00047949,2]
[331418693,1720369841653,-720.29904092,0.00048,120]
[331418694,1720369841662,-11286.1526568,0.00048209,6]
[331418695,1720369841671,-757.72,0.00048219,120]
[331418696,1720369841681,-1088.7,0.00048219,120]
[331418697,1720369841690,-1145.43,0.00048219,120]
[331418698,1720369841699,-500.0,0.00048219,120]
[331418699,1720369841708,-151.0,0.00048219,14]
[331418700,1720369841717,-757.72,0.00048493,120]
[331418701,1720369841727,-1088.7,0.00048493,120]
[331418702,1720369841736,-1145.43,0.00048493,120]
[331418703,1720369841745,-500.0,0.00048493,120]
[331418704,1720369841755,-1050.09,0.0004863,120]
[331418705,1720369841765,-757.72,0.00048767,120]
[331418706,1720369841775,-1088.7,0.00048767,120]
[331418707,1720369841785,-1145.43,0.00048767,120]
[331418708,1720369841795,-500.0,0.00048767,120]
[331418709,1720369841807,-757.72,0.00049041,120]
[331418710,1720369841816,-1088.7,0.00049041,120]
[331418711,1720369841826,-1145.43,0.00049041,120]
[331418712,1720369841836,-500.0,0.00049041,120]
[331418713,1720369841847,-498.14024408,0.0004928,28]
[331418714,1720369841857,-11286.1526568,0.00049305,6]
[331418715,1720369841866,-10000.00000001,0.00049315,61]
[331418716,1720369841876,-757.72,0.00049315,120]
[331418717,1720369841886,-1050.09,0.00049315,120]
[331418718,1720369841896,-1088.7,0.00049315,120]
[331418719,1720369841906,-1145.43,0.00049315,120]
[331418720,1720369841915,-500.0,0.00049315,120]
[331418721,1720369841925,-757.72,0.00049589,120]
[331418722,1720369841935,-1088.7,0.00049589,120]
[331418723,1720369841944,-1145.43,0.00049589,120]
[331418724,1720369841954,-610.0,0.00049589,120]
[331418725,1720369841963,-154.76146562,0.00049811,77]
[331418726,1720369841972,-757.72,0.00049863,120]
[331418727,1720369841981,-1088.7,0.00049863,120]
[331418728,1720369841991,-1145.43,0.00049863,120]
[331418729,1720369842002,-154.66746495,0.0005,30]
[331418730,1720369842013,-1050.09,0.0005,120]
[331418731,1720369842022,-15010.89,0.0005,120]
[331418732,1720369842031,-3000.0,0.000501,120]
[331418733,1720369842043,-11286.1526568,0.00050126,6]
[331418734,1720369842052,-757.88,0.00050136,120]
[331418735,1720369842061,-1088.83175328,0.00050136,120]
[331418736,1720369842071,-1145.62015154,0.00050136,120]
[331418737,1720369842082,-1050.09,0.00050684,120]
[331418738,1720369842091,-1405.0,0.00050949,120]
[331418739,1720369842100,-3000.0,0.00051,85]
[331418740,1720369842109,-5068.87846,0.0005101,85]
[331418741,1720369842119,-321.27174644,0.000513,61]
[331418742,1720369842129,-127945.26094611,0.000513,120]
[331418743,1720369842184,-579.34664966,0.00042999,4]
[331418744,1720369842194,-23050.21756359,0.000513,120]
[331418780,1720369866638,500.0,0.00036311,30]
[331418781,1720369866983,500.0,0.00036311,30]
[331418782,1720369867251,500.0,0.00036311,30]
[331418783,1720369867905,500.0,0.00036311,30]
[331418784,1720369868220,500.0,0.00036311,30]
[331418785,1720369868504,500.0,0.00036311,30]
[331418786,1720369868769,500.0,0.00036311,30]
[331418787,1720369869064,500.0,0.00036311,30]
[331418788,1720369869432,500.0,0.00036311,30]
[331418789,1720369869740,500.0,0.00036311,30]
[331418790,1720369870018,500.0,0.00036311,30]
[331418791,1720369870281,500.0,0.00036311,30]
[331418792,1720369870541,500.0,0.00036311,30]
[331418793,1720369870820,500.0,0.00036311,30]
[331418794,1720369871095,500.0,0.00036311,30]
[331418795,1720369871367,500.0,0.00036311,30]
[331418796,1720369871660,500.0,0.00036311,30]
[331418797,1720369871971,500.0,0.00036311,30]
[331418798,1720369872241,622.88611238,0.00036311,30]
[331418803,1720370128057,230.4956931,0.00036307,120]
[331418808,1720370166105,7497.27440211,0.00036307,120]
[331418818,1720370216724,653.0,0.00036354,120]
[331418821,1720370225648,853.35560975,0.00036354,120]
[331418822,1720370227820,1050.05664578,0.00036354,120]
[331418825,1720370236200,728.18462819,0.00036354,30]
[331418826,1720370236491,905.12872086,0.00036354,120]
[331418827,1720370238871,10577.62935019,0.00036354,30]
[331418828,1720370239400,445.46862217,0.00036354,30]
[331418829,1720370241806,925.1223355,0.00036354,120]
[331418830,1720370242599,1981.01277855,0.00036354,30]
[331418896,1720370973776,-408.797139,0.00015776,2]
[331418898,1720370973807,-250.0,0.00016183,2]
[331418901,1720370973838,-154.30337938,0.00016254,2]
[331418914,1720370974220,-106.7201781,0.00016254,2]
[331418916,1720370974255,-343.3430019,0.00016254,2]
[331418917,1720370974286,-300.0,0.00016254,2]
[331418919,1720370974316,-63.03733838,0.00016254,2]
[331418922,1720370974407,-236.96266162,0.00016254,2]
[331418924,1720370974439,-213.36760372,0.00016255,2]
[331419013,1720371032458,-300.0,0.00016254,2]
[331419015,1720371032478,-300.0,0.00016254,2]
[331419017,1720371032498,-1421.42155171,0.00016255,2]
[331419065,1720371038395,-12597.78178306,0.00016255,2]
[331419066,1720371038413,-898.78971019,0.00016255,2]
[331419067,1720371038425,-4368.99388601,0.00016255,2]
[331419068,1720371038438,-22737.05090574,0.00016255,2]
[331419069,1720371038453,-34938.5563685,0.00016255,2]
[331419070,1720371038463,-459.8175988,0.0001683,2]
[331419071,1720371038475,-420.0,0.00017766,2]
[331419072,1720371038484,-420.0,0.00017879,2]
[331419073,1720371038494,-158.972317,0.00019178,2]
[331419074,1720371038503,-587.0,0.0001942,2]
[331419075,1720371038513,-587.0,0.00019667,2]
[331419076,1720371038523,-250.0,0.00019961,2]
[331419077,1720371038532,-395.885225,0.00020269,2]
[331419078,1720371038541,-14449.5444123,0.0002034,2]
[331419079,1720371038551,-24900.0,0.0002035,2]
[331419080,1720371038560,-166.666666,0.00020867,2]
[331419081,1720371038570,-172.542491,0.00021096,2]
[331419082,1720371038580,-823.0,0.00021227,2]
[331419083,1720371038590,-166.666666,0.00021578,2]
[331419084,1720371038600,-153.0,0.00021634,2]
[331419085,1720371038610,-166.666666,0.00022289,2]
[331419086,1720371038619,-166.666666,0.00023,2]
[331419087,1720371038629,-166.666666,0.00023711,2]
[331419088,1720371038640,-100000.0,0.00025501,2]
[331419089,1720371038650,-2168.52,0.00027174,3]
[331419090,1720371038659,-500.0,0.00027397,2]
[331419091,1720371038669,-500.0,0.00027397,2]
[331419092,1720371038678,-500.0,0.00027397,2]
[331419093,1720371038688,-500.0,0.00027397,2]
[331419094,1720371038700,-500.0,0.00027397,2]
[331419095,1720371038710,-500.0,0.00027397,2]
[331419096,1720371038720,-500.0,0.00027397,2]
[331419097,1720371038730,-500.0,0.00027397,2]
[331419098,1720371038740,-500.0,0.00027397,2]
[331419099,1720371038750,-450.0,0.00027397,2]
[331419100,1720371038760,-17253.08901251,0.00027999,2]
[331419101,1720371038769,-339.99751609,0.00029723,2]
[331419102,1720371038779,-231.75967133,0.00029792,2]
[331419103,1720371038789,-360.24274682,0.00029792,2]
[331419104,1720371038799,-602.34110364,0.00029792,2]
[331419105,1720371038809,-564.2102488,0.00029792,2]
[331419106,1720371038818,-500.0,0.00029792,2]
[331419107,1720371038827,-500.0,0.00029792,2]
[331419108,1720371038836,-500.0,0.00029792,2]
[331419109,1720371038846,-500.0,0.00029792,2]
[331419110,1720371038856,-500.0,0.00029792,2]
[331419111,1720371038867,-500.0,0.00029792,2]
[331419112,1720371038876,-500.0,0.00029792,2]
[331419113,1720371038885,-500.0,0.00029792,2]
[331419114,1720371038895,-500.0,0.00029792,2]
[331419115,1720371038905,-500.0,0.00029792,2]
[331419116,1720371038914,-155.34855382,0.00029792,2]
[331419117,1720371038925,-500.0,0.00029792,2]
[331419118,1720371038935,-500.0,0.00029792,2]
[331419119,1720371038944,-500.0,0.00029792,2]
[331419120,1720371038955,-500.0,0.00029792,2]
[331419121,1720371038965,-500.0,0.00029792,2]
[331419122,1720371038974,-457.21354537,0.00029792,2]
[331419123,1720371038983,-43348.6332368,0.00029793,3]
[331419124,1720371038993,-155.22827276,0.00029879,2]
[331419125,1720371039003,-9617.63324257,0.00029879,2]
[331419126,1720371039013,-9617.63324257,0.00029879,2]
[331419127,1720371039022,-395.885225,0.00030404,2]
[331419128,1720371039033,-159.956279,0.00030921,2]
[331419129,1720371039044,-339.99751608,0.00033017,2]
[331419130,1720371039054,-28899.0888245,0.00033323,4]
[331419131,1720371039064,-41821.00589226,0.00033333,2]
[331419132,1720371039078,-39678.99410674,0.00033333,2]
[331419133,1720371039088,-150.0,0.00033733,2]
[331419134,1720371039099,-9383.27033993,0.00033852,4]
[331419135,1720371039108,-2581.32129548,0.00034254,2]
[331419136,1720371039118,-6331.6213791,0.00034574,4]
[331419137,1720371039129,-4217.45953468,0.00034585,2]
[331419138,1720371039140,-4137.97007333,0.00034592,4]
[331419139,1720371039150,-33160.86133604,0.0003467,4]
[331419140,1720371039160,-230.4956931,0.00035,120]
[331419141,1720371039170,-2132.69930736,0.00035259,4]
[331419142,1720371039180,-2001.63113586,0.00035259,4]
[331419143,1720371039190,-1400.4181649,0.00035259,4]
[331419144,1720371039201,-1501.24478952,0.00035292,2]
[331419145,1720371039211,-2197.13177734,0.00035615,4]
[331419146,1720371039222,-1807.1,0.00035616,3]
[331419147,1720371039232,-257.69157416,0.0003624,2]
[331419148,1720371039242,-155.50507154,0.00036301,2]
[331419149,1720371039252,-14449.5444123,0.00036302,4]
[331419150,1720371039262,-1000.0,0.00036311,3]
[331419151,1720371039272,-339.99751608,0.00036312,2]
[331419152,1720371039282,-2420.76089721,0.00036351,4]
[331419153,1720371039292,-2118.54298063,0.00036351,4]
[331419154,1720371039302,-14449.5444123,0.00036354,4]
[331419155,1720371039312,-303.14085162,0.00036354,4]
[331419156,1720371039321,-1025.80221064,0.00036354,4]
[331419157,1720371039331,-5608.60512887,0.00036354,4]
[331419158,1720371039341,-575.15278975,0.00036354,4]
[331419159,1720371039351,-151.0,0.00036354,7]
[331419160,1720371039360,-26051.55351601,0.00036354,4]
[331419161,1720371039370,-171.58666019,0.00036354,30]